[Event "*** Titled Tuesday Blitz"]
[Site "Chess.com"]
[Date "2019.07.02"]
[Round "9"]
[White "JonahWillow"]
[Black "Warerman"]
[Result "1-0"]
[WhiteElo "2708"]
[BlackElo "2460"]
[TimeControl "180+2"]
[EndTime "15:01:01 PDT"]
[Termination "JonahWillow won by resignation"]

1. e4 {[%clk 0:03:01.9]} 1... c6 {[%clk 0:02:58.8]} 2. d4 {[%clk 0:03:02.8]}
2... d5 {[%clk 0:02:59.9]} 3. e5 {[%clk 0:03:04.1]} 3... Bf5 {[%clk 0:03:00.2]}
4. h4 {[%clk 0:03:05.3]} 4... h5 {[%clk 0:03:00.6]} 5. c4 {[%clk 0:03:06.7]}
5... e6 {[%clk 0:03:00.9]} 6. Nc3 {[%clk 0:03:08.2]} 6... Nd7 {[%clk 0:02:50]}
7. cxd5 {[%clk 0:03:08.6]} 7... cxd5 {[%clk 0:02:44.7]} 8. Bd3 {[%clk
0:03:08.9]} 8... Bxd3 {[%clk 0:02:39.2]} 9. Qxd3 {[%clk 0:03:10.8]} 9... Nh6
{[%clk 0:02:37.8]} 10. Nf3 {[%clk 0:03:11.6]} 10... Nf5 {[%clk 0:02:37.9]} 11.
Nxd5 {[%clk 0:03:12.6]} 11... Nxe5 {[%clk 0:02:24.8]} 12. dxe5 {[%clk
0:03:06.2]} 12... Qxd5 {[%clk 0:02:24.4]} 13. Qxd5 {[%clk 0:03:07.4]} 13... exd5
{[%clk 0:02:25.9]} 14. Bg5 {[%clk 0:03:06.9]} 14... Bb4+ {[%clk 0:02:24.8]} 15.
Ke2 {[%clk 0:03:04.4]} 15... Rc8 {[%clk 0:02:15.7]} 16. Rac1 {[%clk 0:03:02.8]}
16... O-O {[%clk 0:02:16.5]} 17. a3 {[%clk 0:03:03.8]} 17... Ba5 {[%clk
0:02:12.7]} 18. Rhd1 {[%clk 0:03:03.6]} 18... Rxc1 {[%clk 0:01:54.8]} 19. Rxc1
{[%clk 0:02:58.9]} 19... f6 {[%clk 0:01:55.4]} 20. exf6 {[%clk 0:02:55.8]} 20...
gxf6 {[%clk 0:01:57.3]} 21. Bf4 {[%clk 0:02:54.4]} 21... Re8+ {[%clk 0:01:51.6]}
22. Kd3 {[%clk 0:02:52.5]} 22... Re4 {[%clk 0:01:50.1]} 23. g3 {[%clk
0:02:42.7]} 23... Bb6 {[%clk 0:01:50.1]} 24. Rc2 {[%clk 0:02:39]} 24... Nd4
{[%clk 0:01:42.7]} 25. Rc8+ {[%clk 0:02:22.8]} 25... Kf7 {[%clk 0:01:42.7]} 26.
Nd2 {[%clk 0:02:15.6]} 26... Re8 {[%clk 0:01:32.6]} 27. Rxe8 {[%clk 0:02:09.9]}
27... Kxe8 {[%clk 0:01:34.5]} 28. Be3 {[%clk 0:02:10.5]} 28... Nc6 {[%clk
0:01:19.5]} 29. Bxb6 {[%clk 0:02:10.2]} 29... axb6 {[%clk 0:01:21.4]} 30. Nf1
{[%clk 0:01:50.3]} 30... Ke7 {[%clk 0:01:13.9]} 31. Ne3 {[%clk 0:01:49.6]} 31...
Ke6 {[%clk 0:01:13.5]} 32. Ng2 {[%clk 0:01:50.9]} 32... Ne5+ {[%clk 0:01:11.5]}
33. Kd4 {[%clk 0:01:50.4]} 33... Nc6+ {[%clk 0:01:06.3]} 34. Ke3 {[%clk
0:01:50.3]} 34... Kf5 {[%clk 0:01:03.3]} 35. Nf4 {[%clk 0:01:49.7]} 35... d4+
{[%clk 0:01:04]} 36. Kd3 {[%clk 0:01:50.5]} 36... Kg4 {[%clk 0:01:04.9]} 37. Kc4
{[%clk 0:01:41.2]} 37... f5 {[%clk 0:00:55.3]} 38. b4 {[%clk 0:01:39.4]} 38...
Kf3 {[%clk 0:00:55.1]} 39. Nxh5 {[%clk 0:01:35.9]} 39... Kxf2 {[%clk 0:00:55.1]}
40. b5 {[%clk 0:01:36]} 40... Ne7 {[%clk 0:00:37.2]} 41. Kxd4 {[%clk 0:01:34]}
41... Kf3 {[%clk 0:00:38.5]} 42. Ke5 {[%clk 0:01:30.7]} 42... Kg4 {[%clk
0:00:38.2]} 43. Ng7 {[%clk 0:01:27]} 43... Kxg3 {[%clk 0:00:15.2]} 44. Nxf5+
{[%clk 0:01:21.3]} 44... Nxf5 {[%clk 0:00:17.1]} 45. Kxf5 {[%clk 0:01:23.2]}
45... Kxh4 {[%clk 0:00:17.2]} 46. Ke6 {[%clk 0:01:23.8]} 46... Kg4 {[%clk
0:00:19.1]} 47. Kd7 {[%clk 0:01:25.2]} 47... Kf5 {[%clk 0:00:20.2]} 48. Kc7
{[%clk 0:01:27.1]} 48... Ke5 {[%clk 0:00:21.3]} 49. Kxb7 {[%clk 0:01:28.5]}
49... Kd5 {[%clk 0:00:22.5]} 50. Kxb6 {[%clk 0:01:30.4]} 1-0

[Event "*** Titled Tuesday Blitz"]
[Site "Chess.com"]
[Date "2019.07.02"]
[Round "9"]
[White "SergeiAza"]
[Black "lrestevez"]
[Result "1-0"]
[WhiteElo "2802"]
[BlackElo "2144"]
[TimeControl "180+2"]
[EndTime "15:01:31 PDT"]
[Termination "SergeiAza won by resignation"]

1. d4 {[%clk 0:02:58.8]} 1... Nf6 {[%clk 0:03:00.3]} 2. Nf3 {[%clk 0:02:57.7]}
2... c5 {[%clk 0:02:59.6]} 3. d5 {[%clk 0:02:57.1]} 3... e6 {[%clk 0:02:59.3]}
4. c4 {[%clk 0:02:57.8]} 4... exd5 {[%clk 0:02:58.8]} 5. cxd5 {[%clk 0:02:58.8]}
5... d6 {[%clk 0:03:00.4]} 6. Nc3 {[%clk 0:02:59.8]} 6... Be7 {[%clk 0:03:01.7]}
7. g3 {[%clk 0:03:00.8]} 7... O-O {[%clk 0:03:03]} 8. Bg2 {[%clk 0:03:02.4]}
8... Qa5 {[%clk 0:02:55.6]} 9. O-O {[%clk 0:02:46.9]} 9... b5 {[%clk 0:02:56]}
10. Bg5 {[%clk 0:02:32.4]} 10... Nbd7 {[%clk 0:02:47.6]} 11. a3 {[%clk 0:02:11]}
11... h6 {[%clk 0:02:41]} 12. Bf4 {[%clk 0:02:11.9]} 12... Qb6 {[%clk
0:02:40.1]} 13. e4 {[%clk 0:02:07.1]} 13... Re8 {[%clk 0:02:29.2]} 14. e5 {[%clk
0:01:59.7]} 14... Nxe5 {[%clk 0:02:27.1]} 15. Nxe5 {[%clk 0:01:57.3]} 15... dxe5
{[%clk 0:02:27.9]} 16. Bxe5 {[%clk 0:01:55.9]} 16... Bd6 {[%clk 0:02:09.9]} 17.
Bxf6 {[%clk 0:01:49.1]} 17... gxf6 {[%clk 0:02:09.7]} 18. Ne4 {[%clk 0:01:26.1]}
18... Be5 {[%clk 0:02:03.9]} 19. d6 {[%clk 0:01:26.5]} 19... Bb7 {[%clk
0:01:52.1]} 20. d7 {[%clk 0:01:25]} 20... Red8 {[%clk 0:01:49.4]} 21. Qg4+
{[%clk 0:01:24]} 21... Kf8 {[%clk 0:01:45]} 22. Rad1 {[%clk 0:01:23.7]} 22...
Bxe4 {[%clk 0:01:39.5]} 23. Bxe4 {[%clk 0:01:21.5]} 23... Rab8 {[%clk
0:01:40.9]} 24. Qh5 {[%clk 0:01:04.1]} 24... Bxb2 {[%clk 0:01:33.3]} 25. Qxh6+
{[%clk 0:01:01.3]} 25... Ke7 {[%clk 0:01:34.5]} 26. Bf5 {[%clk 0:00:58.1]} 26...
Bd4 {[%clk 0:01:31.3]} 27. Rfe1+ {[%clk 0:00:52.6]} 27... Kd6 {[%clk 0:01:32.1]}
28. Qf4+ {[%clk 0:00:48.5]} 28... Kc6 {[%clk 0:01:33.6]} 29. Rxd4 {[%clk
0:00:35.8]} 29... cxd4 {[%clk 0:01:32]} 30. Qe4+ {[%clk 0:00:35.6]} 30... Kd6
{[%clk 0:01:20.2]} 31. Rd1 {[%clk 0:00:35.2]} 31... Qc5 {[%clk 0:01:14.3]} 32.
Rxd4+ {[%clk 0:00:34.2]} 32... Kc7 {[%clk 0:01:15.7]} 33. a4 {[%clk 0:00:32.4]}
33... a6 {[%clk 0:01:16]} 34. h4 {[%clk 0:00:30]} 34... Rb6 {[%clk 0:01:12.6]}
35. axb5 {[%clk 0:00:27.6]} 35... axb5 {[%clk 0:01:13.1]} 36. h5 {[%clk
0:00:26.9]} 36... Ra6 {[%clk 0:00:59.6]} 37. Rd1 {[%clk 0:00:25.7]} 37... Rc6
{[%clk 0:00:56.5]} 38. h6 {[%clk 0:00:24.4]} 38... Qe5 {[%clk 0:00:57.1]} 39.
Qxe5+ {[%clk 0:00:23.8]} 39... fxe5 {[%clk 0:00:57.7]} 40. h7 {[%clk 0:00:25.4]}
40... Rh6 {[%clk 0:00:58]} 41. Rd5 {[%clk 0:00:24.5]} 41... Kc6 {[%clk
0:00:58.8]} 42. Rxe5 {[%clk 0:00:25.6]} 42... b4 {[%clk 0:00:58.4]} 43. Re8
{[%clk 0:00:22.7]} 43... Kc7 {[%clk 0:00:57.4]} 44. Re4 {[%clk 0:00:21.1]} 44...
Rb8 {[%clk 0:00:56.2]} 45. Rc4+ {[%clk 0:00:21.7]} 45... Kb7 {[%clk 0:00:53.5]}
46. Rc8 {[%clk 0:00:22]} 46... Rxh7 {[%clk 0:00:51]} 47. Rxb8+ {[%clk
0:00:22.7]} 47... Kxb8 {[%clk 0:00:52.3]} 48. d8=Q+ {[%clk 0:00:23.6]} 1-0

[Event "*** Titled Tuesday Blitz"]
[Site "Chess.com"]
[Date "2019.07.02"]
[Round "9"]
[White "doons21"]
[Black "Karina_Ivanova"]
[Result "1-0"]
[WhiteElo "2423"]
[BlackElo "2182"]
[TimeControl "180+2"]
[EndTime "15:01:31 PDT"]
[Termination "doons21 won by checkmate"]

1. e4 {[%clk 0:03:01.9]} 1... c6 {[%clk 0:02:29.5]} 2. d3 {[%clk 0:03:02.4]}
2... d5 {[%clk 0:02:30.4]} 3. Nd2 {[%clk 0:03:03.5]} 3... e5 {[%clk 0:02:31]} 4.
Ngf3 {[%clk 0:03:04.8]} 4... Bd6 {[%clk 0:02:30]} 5. g3 {[%clk 0:03:05.9]} 5...
Nf6 {[%clk 0:02:30.8]} 6. Bg2 {[%clk 0:03:07.2]} 6... O-O {[%clk 0:02:31.5]} 7.
O-O {[%clk 0:03:08.5]} 7... Nbd7 {[%clk 0:02:32.4]} 8. Re1 {[%clk 0:03:06.2]}
8... Re8 {[%clk 0:02:33.1]} 9. Nh4 {[%clk 0:03:07]} 9... Qc7 {[%clk 0:02:32.7]}
10. Nf1 {[%clk 0:02:59.4]} 10... b6 {[%clk 0:02:28.9]} 11. Ne3 {[%clk
0:02:52.4]} 11... Bb7 {[%clk 0:02:28.5]} 12. Qf3 {[%clk 0:02:46.4]} 12... Bf8
{[%clk 0:02:21.1]} 13. Nef5 {[%clk 0:02:29.6]} 13... Rad8 {[%clk 0:02:18.6]} 14.
Bg5 {[%clk 0:02:28.5]} 14... c5 {[%clk 0:02:11.8]} 15. Nh6+ {[%clk 0:02:21.9]}
15... gxh6 {[%clk 0:02:09.9]} 16. Bxf6 {[%clk 0:02:23]} 16... Nxf6 {[%clk
0:02:10.5]} 17. Qxf6 {[%clk 0:02:23.5]} 17... Qe7 {[%clk 0:02:04.4]} 18. Qf3
{[%clk 0:02:22]} 18... d4 {[%clk 0:02:00.8]} 19. Nf5 {[%clk 0:02:22.7]} 19...
Qf6 {[%clk 0:01:59]} 20. h4 {[%clk 0:02:08.3]} 20... Bg7 {[%clk 0:01:56.8]} 21.
a4 {[%clk 0:02:06]} 21... a5 {[%clk 0:01:56.3]} 22. Bh3 {[%clk 0:01:57.3]} 22...
Bc8 {[%clk 0:01:55.4]} 23. Kh2 {[%clk 0:01:54.1]} 23... Kh8 {[%clk 0:01:52.7]}
24. Qh5 {[%clk 0:01:50]} 24... Be6 {[%clk 0:01:51.5]} 25. b3 {[%clk 0:01:50.1]}
25... Qg6 {[%clk 0:01:51]} 26. Qe2 {[%clk 0:01:49.5]} 26... Qf6 {[%clk
0:01:49.7]} 27. Rg1 {[%clk 0:01:47.2]} 27... Rg8 {[%clk 0:01:43.1]} 28. Raf1
{[%clk 0:01:41.7]} 28... Bf8 {[%clk 0:01:41.1]} 29. f4 {[%clk 0:01:34.4]} 29...
Bd6 {[%clk 0:01:34.1]} 30. Nxd6 {[%clk 0:01:13]} 30... Rxd6 {[%clk 0:01:34.2]}
31. Qh5 {[%clk 0:00:54.5]} 31... Bxh3 {[%clk 0:00:59.6]} 32. fxe5 {[%clk
0:00:27.9]} 32... Bg4 {[%clk 0:00:53.9]} 33. Qxg4 {[%clk 0:00:14.8]} 33... Qxf1
{[%clk 0:00:36.6]} 34. Qxg8+ {[%clk 0:00:15.1]} 34... Kxg8 {[%clk 0:00:37.6]}
35. Rxf1 {[%clk 0:00:17]} 35... Re6 {[%clk 0:00:38.2]} 36. Rf5 {[%clk
0:00:18.5]} 36... Kg7 {[%clk 0:00:38.5]} 37. g4 {[%clk 0:00:19.5]} 37... Kg6
{[%clk 0:00:38.7]} 38. Kg3 {[%clk 0:00:20.7]} 38... Re7 {[%clk 0:00:39.3]} 39.
Rf6+ {[%clk 0:00:20.8]} 39... Kg7 {[%clk 0:00:39.7]} 40. Rxb6 {[%clk 0:00:21.9]}
40... Rxe5 {[%clk 0:00:40.7]} 41. Rb5 {[%clk 0:00:23.3]} 41... f6 {[%clk
0:00:37.4]} 42. Rxa5 {[%clk 0:00:23.8]} 42... Kg6 {[%clk 0:00:38]} 43. Ra7
{[%clk 0:00:24.2]} 43... Re6 {[%clk 0:00:37.8]} 44. h5+ {[%clk 0:00:24.8]} 44...
Kg5 {[%clk 0:00:38.7]} 45. Rg7# {[%clk 0:00:26.3]} 1-0

[Event "*** Titled Tuesday Blitz"]
[Site "Chess.com"]
[Date "2019.07.02"]
[Round "9"]
[White "aa175"]
[Black "Jospem"]
[Result "1-0"]
[WhiteElo "2306"]
[BlackElo "2835"]
[TimeControl "180+2"]
[EndTime "15:01:33 PDT"]
[Termination "aa175 won by checkmate"]

1. d4 {[%clk 0:03:01.9]} 1... Nf6 {[%clk 0:02:59.6]} 2. Bf4 {[%clk 0:03:03.1]}
2... g6 {[%clk 0:02:55.9]} 3. e3 {[%clk 0:03:03.9]} 3... Bg7 {[%clk 0:02:54.3]}
4. Be2 {[%clk 0:03:04]} 4... d6 {[%clk 0:02:53.9]} 5. Nf3 {[%clk 0:03:01.7]}
5... O-O {[%clk 0:02:46.4]} 6. O-O {[%clk 0:03:01.9]} 6... b6 {[%clk 0:02:45.5]}
7. c4 {[%clk 0:02:59.5]} 7... Bb7 {[%clk 0:02:34.4]} 8. Nc3 {[%clk 0:02:58.6]}
8... e6 {[%clk 0:02:35.8]} 9. Qc2 {[%clk 0:02:59]} 9... Nbd7 {[%clk 0:02:37.4]}
10. Rfd1 {[%clk 0:02:59.2]} 10... Qe7 {[%clk 0:02:39]} 11. h3 {[%clk 0:02:43.1]}
11... a6 {[%clk 0:02:39.6]} 12. Rab1 {[%clk 0:02:39.5]} 12... Rfd8 {[%clk
0:02:40.9]} 13. b4 {[%clk 0:02:39.1]} 13... Rac8 {[%clk 0:02:41.4]} 14. Qa4
{[%clk 0:02:31.2]} 14... Ne4 {[%clk 0:02:38.9]} 15. Nxe4 {[%clk 0:02:22.1]}
15... Bxe4 {[%clk 0:02:40.8]} 16. Rbc1 {[%clk 0:02:18.7]} 16... Ra8 {[%clk
0:02:42.2]} 17. c5 {[%clk 0:02:04.6]} 17... b5 {[%clk 0:02:41.5]} 18. Qa5 {[%clk
0:01:52.7]} 18... Nf6 {[%clk 0:02:42.5]} 19. cxd6 {[%clk 0:01:49.6]} 19... cxd6
{[%clk 0:02:44.4]} 20. Rc7 {[%clk 0:01:50.1]} 20... Rd7 {[%clk 0:02:45.5]} 21.
Rdc1 {[%clk 0:01:43.1]} 21... Nd5 {[%clk 0:02:46.6]} 22. Rc8+ {[%clk 0:01:39.7]}
22... Rd8 {[%clk 0:02:47.5]} 23. Bg5 {[%clk 0:01:24.4]} 23... f6 {[%clk
0:02:44.8]} 24. Rxa8 {[%clk 0:01:14]} 24... Rxa8 {[%clk 0:02:45]} 25. Bh4 {[%clk
0:01:15.2]} 25... g5 {[%clk 0:02:33.5]} 26. Bg3 {[%clk 0:01:10.4]} 26... Qd7
{[%clk 0:02:09.7]} 27. Nd2 {[%clk 0:01:00.9]} 27... Bg6 {[%clk 0:02:10.9]} 28.
Bf3 {[%clk 0:01:00]} 28... Ra7 {[%clk 0:02:11.1]} 29. Bxd5 {[%clk 0:00:57.6]}
29... exd5 {[%clk 0:02:13]} 30. Qb6 {[%clk 0:00:57.5]} 30... Bf8 {[%clk
0:02:10.3]} 31. Nb3 {[%clk 0:00:48.2]} 31... Bd3 {[%clk 0:02:01.9]} 32. Rc6
{[%clk 0:00:41.9]} 32... Be7 {[%clk 0:01:51.7]} 33. Na5 {[%clk 0:00:31.7]} 33...
Kf7 {[%clk 0:01:28.8]} 34. Bxd6 {[%clk 0:00:25.2]} 34... Bd8 {[%clk 0:01:29.4]}
35. Qc5 {[%clk 0:00:16.8]} 35... Kg6 {[%clk 0:01:08.1]} 36. Rc8 {[%clk
0:00:11.2]} 36... Bxa5 {[%clk 0:00:32.8]} 37. Rg8+ {[%clk 0:00:08.9]} 37... Kf7
{[%clk 0:00:25.2]} 38. Qxd5+ {[%clk 0:00:09.2]} 38... Qe6 {[%clk 0:00:23.3]} 39.
Rf8+ {[%clk 0:00:10]} 39... Kg7 {[%clk 0:00:22.4]} 40. Qxe6 {[%clk 0:00:11.9]}
40... Bc4 {[%clk 0:00:23.1]} 41. Qxf6# {[%clk 0:00:12.6]} 1-0

[Event "*** Titled Tuesday Blitz"]
[Site "Chess.com"]
[Date "2019.07.02"]
[Round "9"]
[White "Caisachess"]
[Black "stoleriu"]
[Result "0-1"]
[WhiteElo "2384"]
[BlackElo "2522"]
[TimeControl "180+2"]
[EndTime "15:01:34 PDT"]
[Termination "stoleriu won by resignation"]

1. e4 {[%clk 0:03:01.9]} 1... e6 {[%clk 0:03:00.2]} 2. d4 {[%clk 0:03:02.4]}
2... d5 {[%clk 0:03:02.1]} 3. Bd3 {[%clk 0:03:03.9]} 3... dxe4 {[%clk
0:03:02.3]} 4. Bxe4 {[%clk 0:03:05.1]} 4... Nf6 {[%clk 0:03:04.2]} 5. Bf3 {[%clk
0:03:06.6]} 5... c5 {[%clk 0:03:06.1]} 6. Ne2 {[%clk 0:03:07.2]} 6... Nc6 {[%clk
0:03:07.6]} 7. Be3 {[%clk 0:03:08.8]} 7... cxd4 {[%clk 0:03:09]} 8. Nxd4 {[%clk
0:03:09.4]} 8... Ne5 {[%clk 0:03:10.6]} 9. Nc3 {[%clk 0:03:10.1]} 9... Nxf3+
{[%clk 0:03:11.4]} 10. Qxf3 {[%clk 0:03:10.6]} 10... Bb4 {[%clk 0:03:12.9]} 11.
Nb5 {[%clk 0:02:58]} 11... O-O {[%clk 0:03:08.3]} 12. O-O {[%clk 0:02:54.7]}
12... a6 {[%clk 0:03:05.3]} 13. Rad1 {[%clk 0:02:54]} 13... Qa5 {[%clk
0:02:59.8]} 14. a3 {[%clk 0:02:33.3]} 14... axb5 {[%clk 0:02:58]} 15. axb4
{[%clk 0:02:34.5]} 15... Qxb4 {[%clk 0:02:59.9]} 16. Bd4 {[%clk 0:02:27.5]}
16... Ne8 {[%clk 0:02:07.5]} 17. Ne4 {[%clk 0:02:24]} 17... f5 {[%clk
0:02:07.5]} 18. Ng5 {[%clk 0:02:17.6]} 18... h6 {[%clk 0:02:00.3]} 19. Nh3
{[%clk 0:02:08.2]} 19... Qc4 {[%clk 0:01:33.2]} 20. Nf4 {[%clk 0:01:50.7]} 20...
Qxc2 {[%clk 0:01:32]} 21. Ng6 {[%clk 0:01:39.2]} 21... Rf7 {[%clk 0:01:31.4]}
22. Ne5 {[%clk 0:01:37.1]} 22... Rc7 {[%clk 0:01:31.2]} 23. Bb6 {[%clk
0:01:28.3]} 23... Qxb2 {[%clk 0:00:35.8]} 24. Bxc7 {[%clk 0:01:26.7]} 24... Nxc7
{[%clk 0:00:37.5]} 25. Rd8+ {[%clk 0:01:14.9]} 25... Kh7 {[%clk 0:00:38.3]} 26.
Nd3 {[%clk 0:00:58.2]} 26... Qf6 {[%clk 0:00:37.6]} 27. Rd6 {[%clk 0:00:54.5]}
27... Qe7 {[%clk 0:00:22.8]} 28. Rd4 {[%clk 0:00:51.7]} 28... Nd5 {[%clk
0:00:20.6]} 29. Re1 {[%clk 0:00:48.9]} 29... Qf6 {[%clk 0:00:20.5]} 30. Ne5
{[%clk 0:00:45.1]} 30... Bd7 {[%clk 0:00:21.4]} 31. Rdd1 {[%clk 0:00:41.9]}
31... Be8 {[%clk 0:00:20.5]} 32. Qe2 {[%clk 0:00:39.2]} 32... b4 {[%clk
0:00:18.8]} 33. Nd3 {[%clk 0:00:36.7]} 33... Nc3 {[%clk 0:00:19.8]} 34. Qd2
{[%clk 0:00:24.3]} 34... Nxd1 {[%clk 0:00:20.4]} 35. Rxd1 {[%clk 0:00:26.2]}
35... Ra1 {[%clk 0:00:19.9]} 36. Nxb4 {[%clk 0:00:26]} 36... Ba4 {[%clk
0:00:19.7]} 37. Re1 {[%clk 0:00:25.1]} 37... Qd4 {[%clk 0:00:15.3]} 0-1

[Event "*** Titled Tuesday Blitz"]
[Site "Chess.com"]
[Date "2019.07.02"]
[Round "9"]
[White "ChessQueen"]
[Black "MasterKroket"]
[Result "1-0"]
[WhiteElo "2592"]
[BlackElo "2389"]
[TimeControl "180+2"]
[EndTime "15:01:41 PDT"]
[Termination "ChessQueen won on time"]

1. Nf3 {[%clk 0:03:01.9]} 1... Nf6 {[%clk 0:02:59]} 2. g3 {[%clk 0:03:01.6]}
2... b6 {[%clk 0:02:59]} 3. Bg2 {[%clk 0:03:02.6]} 3... Bb7 {[%clk 0:03:00.5]}
4. O-O {[%clk 0:03:03.3]} 4... e6 {[%clk 0:03:01.2]} 5. b3 {[%clk 0:03:04]} 5...
Be7 {[%clk 0:03:02.4]} 6. Bb2 {[%clk 0:03:05.5]} 6... O-O {[%clk 0:03:03.4]} 7.
c4 {[%clk 0:03:05.6]} 7... c5 {[%clk 0:03:03.4]} 8. d4 {[%clk 0:03:03.7]} 8...
cxd4 {[%clk 0:03:03.7]} 9. Qxd4 {[%clk 0:03:04.7]} 9... d5 {[%clk 0:03:02.1]}
10. Ne5 {[%clk 0:02:55]} 10... Bc5 {[%clk 0:02:39.9]} 11. Qd2 {[%clk 0:02:39.1]}
11... Qe7 {[%clk 0:02:36.2]} 12. cxd5 {[%clk 0:02:00.8]} 12... Bxd5 {[%clk
0:02:17.9]} 13. Bxd5 {[%clk 0:01:53.6]} 13... Nxd5 {[%clk 0:02:19.8]} 14. e4
{[%clk 0:01:42.1]} 14... Nf6 {[%clk 0:02:15.1]} 15. Qe2 {[%clk 0:01:43.2]} 15...
Nfd7 {[%clk 0:02:08]} 16. Ng4 {[%clk 0:01:29.6]} 16... e5 {[%clk 0:01:49]} 17.
Nc3 {[%clk 0:01:23.2]} 17... Nc6 {[%clk 0:01:45.1]} 18. Nd5 {[%clk 0:01:24]}
18... Qd6 {[%clk 0:01:38.8]} 19. Nge3 {[%clk 0:01:15.1]} 19... Nd4 {[%clk
0:01:30.6]} 20. Bxd4 {[%clk 0:01:12.6]} 20... exd4 {[%clk 0:01:28.6]} 21. Nf5
{[%clk 0:01:12.3]} 21... Qe5 {[%clk 0:01:15]} 22. Qd3 {[%clk 0:01:12.4]} 22...
Nf6 {[%clk 0:01:08.3]} 23. f4 {[%clk 0:00:51]} 23... Qe6 {[%clk 0:01:00.9]} 24.
b4 {[%clk 0:00:45]} 24... Nxe4 {[%clk 0:00:57.1]} 25. bxc5 {[%clk 0:00:41.4]}
25... Nxc5 {[%clk 0:00:50.6]} 26. Nde7+ {[%clk 0:00:34.5]} 26... Kh8 {[%clk
0:00:50.6]} 27. Qxd4 {[%clk 0:00:35.8]} 27... f6 {[%clk 0:00:46.5]} 28. Rfe1
{[%clk 0:00:37.1]} 28... Qf7 {[%clk 0:00:38.6]} 29. Qd5 {[%clk 0:00:37.1]} 29...
Qh5 {[%clk 0:00:30.7]} 30. Ne3 {[%clk 0:00:27.9]} 30... Qh6 {[%clk 0:00:19.3]}
31. N7f5 {[%clk 0:00:26.4]} 31... Qg6 {[%clk 0:00:13.6]} 32. Nh4 {[%clk
0:00:27.3]} 32... Qe8 {[%clk 0:00:09.9]} 33. Nef5 {[%clk 0:00:26.1]} 33... Qa4
{[%clk 0:00:05.3]} 34. Ne7 {[%clk 0:00:21]} 34... Rad8 {[%clk 0:00:04.7]} 35.
Nhg6+ {[%clk 0:00:15.2]} 1-0

[Event "*** Titled Tuesday Blitz"]
[Site "Chess.com"]
[Date "2019.07.02"]
[Round "9"]
[White "Zubrrr"]
[Black "TregubovP"]
[Result "1-0"]
[WhiteElo "2726"]
[BlackElo "2540"]
[TimeControl "180+2"]
[EndTime "15:01:48 PDT"]
[Termination "Zubrrr won by resignation"]

1. c4 {[%clk 0:03:01.9]} 1... c5 {[%clk 0:02:56.2]} 2. g3 {[%clk 0:03:03.1]}
2... Nc6 {[%clk 0:02:55.2]} 3. Nf3 {[%clk 0:03:04.3]} 3... g6 {[%clk 0:02:56.3]}
4. d4 {[%clk 0:03:05.6]} 4... cxd4 {[%clk 0:02:56.8]} 5. Nxd4 {[%clk 0:03:07.5]}
5... Bg7 {[%clk 0:02:57.8]} 6. Nc2 {[%clk 0:03:08.8]} 6... h5 {[%clk 0:02:48.3]}
7. h3 {[%clk 0:03:06.8]} 7... h4 {[%clk 0:02:42.2]} 8. g4 {[%clk 0:03:07.7]}
8... d6 {[%clk 0:02:39.8]} 9. Bg2 {[%clk 0:03:06.5]} 9... f5 {[%clk 0:02:38.7]}
10. gxf5 {[%clk 0:03:05.4]} 10... Bxf5 {[%clk 0:02:37]} 11. Nc3 {[%clk 0:03:02]}
11... Nf6 {[%clk 0:02:34.1]} 12. Ne3 {[%clk 0:02:54.3]} 12... Qd7 {[%clk
0:02:24]} 13. Nxf5 {[%clk 0:02:37.4]} 13... gxf5 {[%clk 0:02:22.4]} 14. Bd2
{[%clk 0:02:12.1]} 14... O-O-O {[%clk 0:01:49.5]} 15. Qa4 {[%clk 0:02:07.9]}
15... Kb8 {[%clk 0:01:40.5]} 16. Be3 {[%clk 0:01:54.5]} 16... a6 {[%clk
0:01:29.8]} 17. O-O-O {[%clk 0:01:46.8]} 17... Rc8 {[%clk 0:01:07.4]} 18. c5
{[%clk 0:01:38.9]} 18... Bh6 {[%clk 0:00:50.2]} 19. Bxh6 {[%clk 0:01:35.2]}
19... Rxh6 {[%clk 0:00:51.1]} 20. cxd6 {[%clk 0:01:36]} 20... exd6 {[%clk
0:00:51.8]} 21. Qf4 {[%clk 0:01:33.5]} 21... Rg6 {[%clk 0:00:39.6]} 22. Bf3
{[%clk 0:01:22.1]} 22... Ne5 {[%clk 0:00:33.1]} 23. Kb1 {[%clk 0:01:15.3]} 23...
Nxf3 {[%clk 0:00:32]} 24. exf3 {[%clk 0:01:01.1]} 24... Rc6 {[%clk 0:00:28.8]}
25. Qxh4 {[%clk 0:00:56.6]} 25... Qc7 {[%clk 0:00:15.5]} 26. Qd4 {[%clk
0:00:51.9]} 26... Nd7 {[%clk 0:00:14.6]} 27. Nd5 {[%clk 0:00:49.5]} 27... Qd8
{[%clk 0:00:15.7]} 28. h4 {[%clk 0:00:42.3]} 28... Re6 {[%clk 0:00:15.9]} 29. h5
{[%clk 0:00:40.2]} 29... Qg5 {[%clk 0:00:15.7]} 30. f4 {[%clk 0:00:34.5]} 30...
Qh6 {[%clk 0:00:15.7]} 31. f3 {[%clk 0:00:29.9]} 31... Nf6 {[%clk 0:00:13.8]}
32. Ne3 {[%clk 0:00:22.5]} 32... Qh7 {[%clk 0:00:12.9]} 33. Qd3 {[%clk
0:00:17.1]} 33... Rc5 {[%clk 0:00:13.2]} 34. Rdg1 {[%clk 0:00:08.7]} 34... Nd7
{[%clk 0:00:09.6]} 35. Nc2 {[%clk 0:00:05.9]} 35... Rh6 {[%clk 0:00:07.4]} 36.
Qd4 {[%clk 0:00:05.5]} 36... Rc6 {[%clk 0:00:06.2]} 37. Rg7 {[%clk 0:00:05.3]}
1-0